bitfinex-derivatives/quotes_BTCF0:USTF0_20220102
["timestamp","ask_amount","ask_price","bid_price","bid_amount"]
[1641165234850,0.09004569,47343.0,47342.0,1.18713059]
[1641165235049,0.09004569,47343.0,47341.0,1.18713059]
[1641165235446,0.26804569,47343.0,47341.0,1.18713059]
[1641165236850,0.09004569,47342.0,47341.0,1.18713059]
[1641165237352,0.27004569,47342.0,47341.0,1.18713059]
[1641165237551,0.18,47342.0,47341.0,1.18713059]
[1641165238855,0.09004569,47343.0,47337.0,1.30709618]
[1641165239053,0.09004569,47342.0,47337.0,1.30709618]
[1641165240055,0.14033567,47339.0,47337.0,1.30709618]
[1641165240257,0.25895259,47338.0,47337.0,1.30709618]
[1641165240859,1.57973042,47338.0,47337.0,0.59255951]
[1641165241461,0.53199828,47338.0,47337.0,0.59255951]
[1641165241657,0.53199828,47338.0,47329.0,0.59255951]
[1641165241858,0.18,47334.0,47329.0,0.59255951]
[1641165242262,0.20113585,47330.0,47329.0,0.59255951]
[1641165242461,0.20113585,47330.0,47327.0,0.82958331]
[1641165242860,0.20113585,47330.0,47327.0,0.74678545]
[1641165243062,0.18,47328.0,47327.0,0.74678545]
[1641165243261,0.25687,47328.0,47327.0,0.74678545]
[1641165244063,0.25687,47328.0,47321.0,1.30709618]
[1641165244267,0.14033567,47324.0,47315.0,0.14033567]
[1641165244475,0.14033567,47324.0,47319.0,0.18]
[1641165244678,0.23038136,47328.0,47319.0,0.18]
[1641165244877,0.23038136,47328.0,47323.0,0.08122]
[1641165245474,0.40738136,47328.0,47323.0,0.08122]
[1641165245674,0.31733567,47328.0,47323.0,0.08122]
[1641165246876,0.14033567,47328.0,47323.0,0.08122]
[1641165247078,0.35995662,47326.0,47323.0,0.08122]
[1641165247278,1.34191047,47335.0,47325.0,0.18]
[1641165247482,1.32077783,47335.0,47333.0,0.18]
[1641165247677,1.32077783,47335.0,47334.0,0.001]
[1641165248083,1.32077783,47337.0,47334.0,0.001]
[1641165248279,1.32077783,47337.0,47336.0,0.32033567]
[1641165249283,1.32077783,47344.0,47336.0,0.32033567]
[1641165249479,0.171,47337.0,47336.0,0.32033567]
[1641165250184,0.171,47337.0,47336.0,0.14033567]
[1641165250381,0.171,47337.0,47336.0,0.32033567]
[1641165251180,0.171,47337.0,47336.0,0.14033567]
[1641165251381,0.02112956,47342.0,47336.0,0.14033567]
[1641165251582,0.17,47337.0,47336.0,0.14033567]
[1641165252790,0.59981071,47338.0,47336.0,0.14033567]
[1641165252983,0.59981071,47338.0,47337.0,0.18]
[1641165253583,0.76881071,47338.0,47336.0,0.14033567]
[1641165253883,0.76881071,47338.0,47337.0,0.18]
[1641165254483,0.76881071,47338.0,47337.0,0.181]
[1641165254683,0.76881071,47338.0,47337.0,0.001]
[1641165254885,0.59981071,47338.0,47337.0,0.001]
[1641165255183,0.59981071,47338.0,47336.0,0.14033567]
[1641165255489,0.77081071,47338.0,47336.0,0.14033567]
[1641165255684,0.77081071,47338.0,47337.0,0.18]
[1641165256984,0.59981071,47338.0,47337.0,0.18]
[1641165257188,0.59981071,47338.0,47336.0,0.14033567]
[1641165257385,0.59981071,47338.0,47337.0,0.18]
[1641165257685,0.76881071,47338.0,47337.0,0.18]
[1641165258389,0.25905425,47338.0,47337.0,0.18]
[1641165258587,0.25905425,47338.0,47337.0,1.00603654]
[1641165258789,0.09005425,47338.0,47337.0,1.00603654]
[1641165259588,0.25905425,47338.0,47337.0,0.82603654]
[1641165260489,0.25905425,47338.0,47337.0,0.35391645]
[1641165260987,0.09005425,47338.0,47337.0,0.35391645]
[1641165261588,0.25905425,47338.0,47337.0,0.35391645]
[1641165261990,0.169,47338.0,47336.0,0.9437772]
[1641165262189,0.169,47338.0,47336.0,0.35391645]
[1641165262889,0.09005425,47337.0,47336.0,0.35391645]
[1641165263490,0.27405425,47337.0,47336.0,0.35391645]
[1641165263893,0.20513251,47337.0,47336.0,0.35391645]
[1641165264096,0.38513251,47337.0,47336.0,0.35391645]
[1641165264593,0.20513251,47337.0,47336.0,0.35391645]
[1641165264793,1.64575395,47337.0,47336.0,0.35391645]
[1641165264997,1.5518082,47337.0,47331.0,0.35391645]
[1641165265495,1.7448082,47337.0,47331.0,0.35391645]
[1641165265899,1.32060438,47333.0,47330.0,0.35391645]
[1641165267295,1.41065863,47333.0,47330.0,0.35391645]
[1641165267495,1.60565863,47333.0,47330.0,0.35391645]
[1641165268295,1.78565863,47333.0,47330.0,0.35391645]
[1641165268695,1.60565863,47333.0,47330.0,0.35391645]
[1641165269097,0.09005425,47332.0,47330.0,0.35391645]
[1641165270097,1.41065863,47332.0,47330.0,0.35391645]
[1641165271401,0.09005425,47332.0,47330.0,0.35391645]
[1641165271601,0.27405425,47332.0,47330.0,0.35391645]
[1641165272302,0.184,47332.0,47331.0,0.35391645]
[1641165272702,0.184,47332.0,47331.0,0.49425212]
[1641165272901,1.32060438,47333.0,47331.0,0.14033567]
[1641165273303,0.84029663,47333.0,47331.0,0.14033567]
[1641165275102,1.4106622,47338.0,47331.0,0.14033567]
[1641165275303,1.32060438,47337.0,47331.0,0.96668643]
[1641165276206,1.32060438,47337.0,47334.0,0.35418856]
[1641165276604,0.02113249,47335.0,47334.0,0.35418856]
[1641165277005,0.02113249,47335.0,47333.0,0.35418856]
[1641165277306,1.34173687,47335.0,47333.0,0.35418856]
[1641165277503,1.49073687,47335.0,47333.0,0.35418856]
[1641165278108,1.49073687,47335.0,47332.0,0.35418856]
[1641165278908,1.32060438,47333.0,47331.0,0.49452423]
[1641165279607,1.49960438,47333.0,47331.0,0.49452423]
[1641165280309,1.49960438,47333.0,47331.0,0.14033567]
[1641165281005,1.32060438,47333.0,47331.0,0.14033567]
[1641165281208,1.4106622,47332.0,47331.0,0.14033567]
[1641165281708,1.32060438,47332.0,47331.0,0.14033567]
[1641165283410,1.4106622,47332.0,47331.0,0.14033567]
[1641165283608,1.5956622,47332.0,47331.0,0.14033567]
[1641165284016,0.185,47332.0,47331.0,0.49452423]
[1641165284810,0.27505782,47332.0,47331.0,0.49452423]
[1641165285712,0.27305782,47332.0,47331.0,0.49452423]
[1641165285912,0.27305782,47332.0,47331.0,0.14033567]
[1641165287014,0.09005782,47332.0,47331.0,0.14033567]
[1641165287615,0.27505782,47332.0,47331.0,0.14033567]
[1641165289018,0.09005782,47332.0,47331.0,0.14033567]
[1641165289718,0.18105782,47332.0,47331.0,0.14033567]
[1641165290118,0.091,47332.0,47331.0,0.14033567]
[1641165290920,0.09005782,47332.0,47331.0,0.14033567]
[1641165291618,0.16505782,47332.0,47331.0,0.14033567]
[1641165291824,0.075,47332.0,47331.0,0.14033567]
[1641165292520,0.16505782,47332.0,47331.0,0.14033567]
[1641165292920,0.09005782,47332.0,47331.0,0.14033567]
[1641165293637,1.02986344,47332.0,47331.0,0.14033567]
[1641165294442,0.19005782,47332.0,47331.0,0.14033567]
[1641165294839,0.09005782,47332.0,47331.0,0.14033567]
[1641165295241,0.92986344,47332.0,47331.0,0.14033567]
[1641165295640,1.11486344,47332.0,47331.0,0.14033567]
[1641165296243,1.02480562,47332.0,47331.0,0.14033567]
[1641165296842,0.185,47332.0,47331.0,0.14033567]
[1641165297049,0.09005782,47332.0,47331.0,0.14033567]
[1641165297545,0.15520782,47332.0,47331.0,0.14033567]
[1641165297745,0.24615,47332.0,47331.0,0.14033567]
[1641165298548,0.24615,47332.0,47326.0,0.59031426]
[1641165298549,0.33620782,47332.0,47326.0,0.59031426]
[1641165298745,0.33620782,47332.0,47324.0,0.35418856]
[1641165299044,0.15520782,47332.0,47324.0,0.35418856]
[1641165299648,0.34020782,47332.0,47324.0,0.35418856]
[1641165299845,0.25015,47332.0,47323.0,0.02]
[1641165300744,0.59995266,47325.0,47323.0,0.37530032]
[1641165301444,0.59995266,47325.0,47323.0,0.02]
[1641165301645,0.77395266,47325.0,47323.0,0.02]
[1641165302250,0.77395266,47325.0,47323.0,0.55530032]
[1641165302647,0.77395266,47325.0,47324.0,1.111]
[1641165302846,0.77395266,47325.0,47324.0,1.17676]
[1641165303045,0.59995266,47325.0,47324.0,0.06576]
[1641165303245,0.59995266,47325.0,47324.0,1.17676]
[1641165303645,0.59995266,47325.0,47324.0,0.06576]
[1641165304047,0.59995266,47326.0,47324.0,0.42106032]
[1641165305148,0.59995266,47326.0,47324.0,0.06576]
[1641165305349,0.59995266,47326.0,47323.0,0.209794]
[1641165305550,1.43988639,47326.0,47324.0,1.30276784]
[1641165305751,0.59995266,47325.0,47324.0,1.30276784]
[1641165306150,0.95593373,47326.0,47324.0,1.30276784]
[1641165306151,0.116,47326.0,47324.0,1.30276784]
[1641165306557,0.09006455,47325.0,47323.0,0.209794]
[1641165307754,0.21906455,47325.0,47323.0,0.209794]
[1641165308153,0.21906455,47325.0,47323.0,0.029794]
[1641165308855,0.60021818,47324.0,47323.0,1.2285264]
[1641165311661,0.74021818,47324.0,47323.0,1.2285264]
[1641165312968,0.60021818,47324.0,47323.0,1.2285264]
[1641165313870,0.84030545,47325.0,47323.0,0.029794]
[1641165315768,0.97030545,47325.0,47323.0,0.029794]
[1641165316372,0.97030545,47325.0,47323.0,1.2285264]
[1641165316373,0.60023006,47324.0,47323.0,1.2285264]
[1641165316971,0.60023006,47324.0,47323.0,1.2187324]
[1641165317773,0.74523006,47324.0,47323.0,1.2187324]
[1641165318371,0.145,47324.0,47323.0,1.2187324]
[1641165318973,0.84030545,47324.0,47323.0,2.05910317]
[1641165319172,0.84030545,47324.0,47323.0,0.86037077]
[1641165319773,0.154,47324.0,47323.0,0.86037077]
[1641165319974,0.24406455,47324.0,47323.0,0.86037077]
[1641165320476,0.24406455,47324.0,47323.0,0.02]
[1641165321075,0.09006455,47324.0,47323.0,0.02]
[1641165321674,0.24606455,47324.0,47323.0,0.02]
[1641165322576,0.156,47324.0,47323.0,0.02]
[1641165322777,0.156,47324.0,47323.0,0.86037077]
[1641165322976,0.09006455,47327.0,47323.0,0.86037077]
[1641165323377,0.09006455,47324.0,47323.0,0.86037077]
[1641165324376,0.09006455,47326.0,47324.0,0.60028149]
[1641165325884,0.173,47326.0,47324.0,0.60028149]
[1641165326581,0.29120266,47325.0,47324.0,0.60028149]
[1641165326781,0.3730345,47325.0,47324.0,0.05482486]
[1641165326998,0.3730345,47325.0,47322.0,0.5840017]
[1641165327197,0.46953376,47325.0,47322.0,0.5840017]
[1641165327598,0.28067134,47323.0,47320.0,1.1987324]
[1641165327797,0.18,47321.0,47320.0,1.1987324]
[1641165328198,0.20114174,47321.0,47316.0,0.60038205]
[1641165328407,0.18,47317.0,47316.0,0.60038205]
[1641165329097,0.18,47317.0,47312.0,1.1987324]
[1641165329598,0.14033567,47314.0,47312.0,1.1987324]
[1641165329799,0.14033567,47314.0,47307.0,0.14033567]
[1641165329800,0.14033567,47314.0,47308.0,1.1987324]
[1641165331105,0.09006455,47313.0,47308.0,1.1987324]
[1641165331300,0.09006455,47313.0,47307.0,1.33906807]
[1641165331301,1.32063858,47311.0,47307.0,1.33906807]
[1641165331699,1.43463858,47311.0,47307.0,1.33906807]
[1641165332299,1.43463858,47311.0,47310.0,0.001]
[1641165332505,1.43463858,47311.0,47310.0,0.07611]
[1641165332903,0.114,47311.0,47310.0,0.07611]
[1641165333102,0.14033567,47314.0,47310.0,0.07611]
[1641165333300,0.14033567,47314.0,47310.0,0.07511]
[1641165333501,0.14033567,47314.0,47310.0,1.18611]
[1641165333705,0.35938743,47318.0,47310.0,1.18611]
[1641165334008,0.35938743,47318.0,47310.0,0.07511]
[1641165334502,0.02114174,47321.0,47310.0,0.07511]
[1641165334900,0.02113915,47320.0,47310.0,0.07511]
[1641165335300,0.02113915,47320.0,47310.0,1.18611]
[1641165335703,0.20613915,47320.0,47310.0,1.18611]
[1641165335906,0.02114007,47318.0,47310.0,1.18611]
[1641165336107,0.185,47320.0,47311.0,0.009794]
[1641165336307,0.185,47320.0,47314.0,0.18]
[1641165337005,0.185,47320.0,47315.0,0.18]
[1641165337604,0.185,47320.0,47312.0,2.86706468]
[1641165337815,0.36,47320.0,47312.0,2.86706468]
[1641165339106,0.02113831,47322.0,47312.0,2.86706468]
[1641165339814,0.19913831,47322.0,47312.0,2.86706468]
[1641165341012,0.02113831,47322.0,47312.0,2.86706468]
[1641165341210,0.02113831,47322.0,47312.0,3.97806468]
[1641165341811,0.19913831,47322.0,47312.0,3.97806468]
[1641165343213,0.02113831,47322.0,47312.0,3.97806468]
[1641165343815,0.19913831,47322.0,47312.0,2.86706468]
[1641165344421,0.19913831,47322.0,47314.0,0.18]
[1641165344620,0.19913831,47322.0,47312.0,3.97806468]
[1641165345216,0.02113831,47322.0,47312.0,3.97806468]
[1641165345416,0.02113831,47322.0,47312.0,2.86706468]
[1641165345818,0.19813831,47322.0,47313.0,0.14033567]
[1641165347117,0.02113831,47322.0,47313.0,0.14033567]
[1641165347818,0.19913831,47322.0,47313.0,0.14033567]
[1641165349217,0.02113831,47322.0,47313.0,0.14033567]
[1641165349816,0.19913831,47322.0,47313.0,0.14033567]
[1641165351121,0.02113831,47322.0,47313.0,0.14033567]
[1641165351717,0.19913831,47322.0,47313.0,0.14033567]
[1641165353121,0.19913831,47322.0,47319.0,0.35861245]
[1641165353122,1.52649806,47321.0,47319.0,0.35861245]
[1641165353820,1.70049806,47321.0,47319.0,0.35861245]
[1641165355322,0.09009269,47320.0,47319.0,0.35861245]
[1641165355724,0.26509269,47320.0,47319.0,0.35861245]
[1641165357130,0.09009269,47320.0,47319.0,0.35861245]
[1641165357827,0.26209269,47320.0,47319.0,0.35861245]
[1641165358228,0.172,47320.0,47319.0,0.35861245]
[1641165358729,0.26209269,47320.0,47319.0,0.35861245]
[1641165359735,0.09009269,47320.0,47319.0,0.35861245]
[1641165359931,0.26409269,47320.0,47319.0,0.35861245]
[1641165361132,0.09009269,47320.0,47319.0,0.35861245]
[1641165361931,0.25709269,47320.0,47319.0,0.35861245]
[1641165362534,0.167,47320.0,47319.0,0.35861245]
[1641165363134,0.09009269,47320.0,47319.0,0.35861245]
[1641165363835,0.25709269,47320.0,47319.0,0.35861245]
[1641165365139,0.09009269,47321.0,47314.0,0.18]
[1641165365839,0.35994316,47316.0,47314.0,0.72661245]
[1641165366537,0.35994316,47316.0,47314.0,0.54661245]
[1641165366940,0.35994316,47316.0,47314.0,0.188]
[1641165367341,0.35994316,47316.0,47313.0,0.67894812]
[1641165367544,0.35994316,47316.0,47314.0,0.18]
[1641165367944,0.35994316,47316.0,47315.0,1.111]
[1641165369951,0.35994316,47316.0,47315.0,1.305]
[1641165370854,0.35994316,47317.0,47315.0,1.305]
[1641165371252,0.35994316,47317.0,47314.0,0.35861245]
[1641165371955,0.35994316,47317.0,47314.0,0.55161245]
[1641165372954,0.59990527,47319.0,47314.0,0.55161245]
[1641165372955,0.35994316,47316.0,47314.0,0.55161245]
[1641165373155,0.35994316,47316.0,47314.0,0.35861245]
[1641165373556,0.35994316,47316.0,47315.0,1.111]
[1641165375857,0.35994316,47316.0,47315.0,1.304]
[1641165376460,0.35994316,47317.0,47315.0,1.304]
[1641165377260,0.09009269,47321.0,47315.0,1.111]
[1641165377662,1.31977042,47319.0,47315.0,2.3097324]
[1641165377867,1.31977042,47319.0,47315.0,2.5017324]
[1641165378472,1.31977042,47319.0,47317.0,0.84006109]
[1641165379966,1.31977042,47319.0,47317.0,1.03406109]
[1641165380169,0.32033567,47333.0,47318.0,1.300794]
[1641165380471,0.0211343,47331.0,47324.0,0.14033567]
[1641165381070,0.0211343,47331.0,47329.0,0.001]
[1641165381267,0.0211343,47331.0,47330.0,0.001]
[1641165381869,0.0211343,47331.0,47330.0,0.175]
[1641165381870,0.2021343,47331.0,47330.0,0.175]
[1641165383270,0.0211343,47331.0,47327.0,0.36034092]
[1641165383472,0.18,47328.0,47327.0,0.36034092]
[1641165383675,0.18,47328.0,47323.0,0.36034092]
[1641165383872,0.18,47324.0,47323.0,0.36034092]
[1641165384573,0.18,47324.0,47322.0,0.36034092]
[1641165384973,0.14033567,47325.0,47322.0,0.36034092]
[1641165385273,0.18,47324.0,47322.0,0.36034092]
[1641165385476,0.18,47324.0,47321.0,0.36034092]
[1641165385477,1.43871421,47323.0,47321.0,0.36034092]
[1641165385875,1.43871421,47323.0,47322.0,0.124]
[1641165387175,1.43871421,47323.0,47321.0,0.36034092]
[1641165387877,1.62471421,47323.0,47321.0,0.49234092]
[1641165388581,0.186,47323.0,47321.0,0.132]
[1641165389287,1.61871421,47324.0,47320.0,0.36034092]
[1641165389981,1.80571421,47324.0,47320.0,0.49134092]
[1641165391283,1.61871421,47324.0,47320.0,0.36034092]
[1641165391482,1.43871421,47324.0,47320.0,0.36034092]
[1641165391684,1.61871421,47324.0,47320.0,0.36034092]
[1641165391883,1.80471421,47324.0,47320.0,0.48934092]
[1641165393286,1.61871421,47324.0,47320.0,0.36034092]
[1641165393490,0.18,47321.0,47320.0,0.36034092]
[1641165393686,0.2696107,47321.0,47320.0,0.36034092]
[1641165394390,0.38792433,47321.0,47319.0,0.36040821]
[1641165394986,0.2586493,47320.0,47319.0,0.36040821]
[1641165395586,0.2586493,47320.0,47316.0,0.84006109]
[1641165395792,0.18,47317.0,47316.0,0.84006109]
[1641165395992,0.18,47317.0,47310.0,0.84006109]
[1641165396187,0.18,47314.0,47310.0,0.84006109]
[1641165396987,0.09012583,47313.0,47310.0,0.84006109]
[1641165397190,1.31527247,47312.0,47309.0,0.84006109]
[1641165397988,1.31527247,47311.0,47309.0,0.16]
[1641165398187,1.39649247,47311.0,47309.0,0.16]
[1641165399089,0.14033567,47310.0,47309.0,0.16]
[1641165399292,0.14033567,47310.0,47308.0,0.84006109]
[1641165399992,0.32233567,47310.0,47308.0,1.01306109]
[1641165400592,0.09012583,47309.0,47308.0,1.01306109]
[1641165401197,0.17541583,47309.0,47308.0,1.01306109]
[1641165401493,0.17541583,47309.0,47307.0,0.84006109]
[1641165401891,0.36641583,47309.0,47307.0,0.84006109]
[1641165402697,0.09012583,47308.0,47306.0,0.84006109]
[1641165403399,1.4906883,47309.0,47306.0,0.84006109]
[1641165403597,0.02114649,47307.0,47306.0,0.84006109]
[1641165403998,0.20114649,47307.0,47306.0,0.84006109]
[1641165404197,0.02114649,47307.0,47306.0,0.84006109]
[1641165404402,0.20114649,47307.0,47306.0,0.84006109]
[1641165404799,0.14114649,47307.0,47306.0,0.84006109]
[1641165405000,0.20114649,47307.0,47306.0,0.84006109]
[1641165405301,0.02114649,47307.0,47306.0,0.84006109]
[1641165405502,0.02114649,47307.0,47304.0,0.84006109]
[1641165405503,1.42654479,47307.0,47304.0,0.84006109]
[1641165405702,1.4053983,47307.0,47304.0,0.84006109]
[1641165405901,1.5993983,47307.0,47304.0,0.84006109]
[1641165406307,0.09012583,47306.0,47304.0,0.84006109]
[1641165407307,0.09012583,47306.0,47305.0,0.84006109]
[1641165408001,0.14812583,47306.0,47305.0,1.01606109]
[1641165409108,0.14812583,47306.0,47305.0,0.176]
[1641165409305,0.09012583,47306.0,47304.0,1.1987324]
[1641165409904,0.04,47306.0,47304.0,1.3767324]
[1641165410710,0.09012583,47305.0,47304.0,1.3767324]
[1641165411107,0.09012583,47305.0,47304.0,1.51706807]
[1641165411310,1.31527247,47308.0,47305.0,0.009794]
[1641165411508,1.31527247,47308.0,47307.0,1.291]
[1641165411712,1.31527247,47308.0,47307.0,1.292]
[1641165412309,1.31527247,47308.0,47307.0,1.112]
[1641165412507,1.31527247,47308.0,47307.0,1.111]
[1641165413207,1.31527247,47308.0,47307.0,1.25233567]
[1641165414007,1.31527247,47308.0,47307.0,1.43833567]
[1641165414215,2.15291004,47308.0,47307.0,1.43833567]
[1641165414414,0.83763757,47308.0,47307.0,2.75968859]
[1641165414809,1.31527247,47313.0,47307.0,1.43833567]
[1641165415009,1.31527247,47313.0,47307.0,1.43733567]
[1641165415208,1.31527247,47313.0,47312.0,0.14033567]
[1641165416012,0.83614295,47313.0,47312.0,0.32433567]
[1641165416713,0.83614295,47313.0,47312.0,1.44512967]
[1641165416911,1.31527247,47318.0,47312.0,1.44512967]
[1641165417113,1.31527247,47320.0,47317.0,0.14033567]
[1641165417312,1.31527247,47320.0,47317.0,0.22687567]
[1641165417716,0.90023748,47332.0,47320.0,1.111]
[1641165417912,0.90023748,47332.0,47328.0,0.18]
[1641165418113,0.90023748,47332.0,47331.0,0.001]
[1641165418415,0.90023748,47332.0,47331.0,1.292]
[1641165418912,0.90023748,47332.0,47331.0,0.181]
[1641165419114,0.90023748,47332.0,47331.0,0.14033567]
[1641165419612,0.90023748,47332.0,47331.0,0.32033567]
[1641165419814,0.90023748,47332.0,47331.0,1.43133567]
[1641165420014,0.02113028,47340.0,47331.0,1.61933567]
[1641165420213,0.02113028,47340.0,47331.0,0.32833567]
[1641165421413,0.02113028,47340.0,47331.0,0.14033567]
[1641165421614,0.18,47339.0,47331.0,0.14033567]
[1641165421816,0.23667,47339.0,47331.0,0.14033567]
[1641165422020,0.23667,47339.0,47331.0,0.26233567]
[1641165422715,0.02113136,47338.0,47331.0,0.26233567]
[1641165423318,0.02113136,47338.0,47331.0,0.14033567]
[1641165424727,1.31458355,47334.0,47331.0,0.14033567]
[1641165425729,0.02113136,47338.0,47331.0,0.14033567]
[1641165425730,1.31458355,47333.0,47331.0,0.14033567]
[1641165425929,1.31458355,47333.0,47331.0,0.17333567]
[1641165426928,1.40467975,47332.0,47331.0,0.17333567]
[1641165427534,0.0900962,47332.0,47331.0,0.17333567]
[1641165428129,0.0900962,47332.0,47331.0,0.33333567]
[1641165429331,0.0900962,47332.0,47331.0,0.14033567]
[1641165429929,0.0900962,47332.0,47331.0,0.30833567]
[1641165430132,0.0900962,47333.0,47331.0,0.30833567]
[1641165431236,1.40467975,47333.0,47331.0,0.30833567]
[1641165431434,1.40467975,47333.0,47331.0,0.14033567]
[1641165432134,0.0900962,47332.0,47331.0,0.29833567]
[1641165432933,0.0900962,47333.0,47331.0,0.29833567]
[1641165433433,0.0900962,47333.0,47331.0,0.14033567]
[1641165433936,1.43409114,47332.0,47331.0,0.14033567]
[1641165434134,1.43409114,47332.0,47331.0,0.30533567]
[1641165435435,1.43409114,47332.0,47331.0,0.14033567]
[1641165436038,1.43409114,47332.0,47331.0,0.32033567]
[1641165436643,1.43409114,47333.0,47331.0,0.68044432]
[1641165437444,1.43409114,47333.0,47331.0,0.50044432]
[1641165437942,1.43409114,47332.0,47331.0,0.14033567]
[1641165438148,1.43409114,47332.0,47331.0,0.32033567]
[1641165439444,1.43409114,47332.0,47331.0,0.14033567]
[1641165440146,1.43409114,47332.0,47331.0,0.32133567]
[1641165440947,0.0900962,47336.0,47331.0,0.32133567]
[1641165441346,0.0900962,47336.0,47331.0,0.14033567]
[1641165441748,1.44048131,47332.0,47331.0,0.14033567]
[1641165442249,1.44048131,47332.0,47331.0,0.30733567]
[1641165443349,1.44048131,47332.0,47331.0,0.14033567]
[1641165443852,0.35893332,47333.0,47331.0,0.14033567]
[1641165444052,0.35893332,47333.0,47331.0,0.32133567]
[1641165445456,0.35893332,47333.0,47331.0,0.14033567]
[1641165445658,0.35893332,47332.0,47331.0,0.14033567]
[1641165446058,0.35893332,47332.0,47331.0,0.18]
[1641165446257,0.35893332,47332.0,47318.0,1.9208]
[1641165446258,0.06338409,47331.0,47318.0,1.9208]
[1641165446457,0.18,47326.0,47318.0,1.9208]
[1641165446659,0.18,47326.0,47318.0,2.28090865]
[1641165446856,0.18,47326.0,47318.0,0.36010865]
[1641165447258,0.20113846,47322.0,47318.0,0.36010865]
[1641165447462,0.02113969,47319.0,47318.0,0.36010865]
[1641165447660,0.20113969,47319.0,47318.0,0.36010865]
[1641165447862,0.02113969,47319.0,47316.0,0.59998118]
[1641165448065,0.21013969,47319.0,47315.0,0.0314]
[1641165448462,0.39013969,47319.0,47315.0,0.0314]
[1641165449062,0.189,47319.0,47315.0,0.0314]
[1641165449464,0.38007208,47321.0,47315.0,0.0314]
[1641165450065,0.57007208,47321.0,47315.0,0.0314]
[1641165450465,0.35893332,47320.0,47315.0,0.0314]
[1641165452278,0.19,47320.0,47315.0,0.0314]
[1641165453377,0.38007208,47321.0,47315.0,0.0314]
[1641165453980,0.35893332,47320.0,47315.0,0.0314]
[1641165456183,0.55293332,47320.0,47315.0,0.0314]
[1641165456587,0.194,47320.0,47315.0,0.0314]
[1641165458184,0.385,47320.0,47315.0,0.0314]
[1641165459497,0.38007208,47321.0,47315.0,0.0314]
[1641165459690,0.02113876,47321.0,47315.0,0.11029]
[1641165460088,0.21213876,47321.0,47315.0,0.11029]
[1641165460393,0.57107208,47321.0,47315.0,0.11029]
[1641165461288,0.21213876,47321.0,47315.0,0.11029]
[1641165461489,0.09009737,47320.0,47319.0,0.36010865]
[1641165462089,0.28209737,47320.0,47319.0,0.36010865]
[1641165463693,0.09009737,47320.0,47319.0,0.36010865]
[1641165464092,0.28009737,47320.0,47319.0,0.36010865]
[1641165465496,0.09009737,47320.0,47319.0,0.36010865]
[1641165466095,0.27509737,47320.0,47319.0,0.36010865]
[1641165466698,0.27509737,47320.0,47315.0,0.0314]
[1641165466699,0.27509737,47320.0,47317.0,0.36010865]
[1641165467099,0.18,47319.0,47317.0,0.36010865]
[1641165467399,1.43892996,47318.0,47316.0,0.36010865]
[1641165468107,1.62392996,47318.0,47316.0,0.36010865]
[1641165469103,0.185,47318.0,47317.0,0.36010865]
[1641165469502,1.61892996,47319.0,47317.0,0.36010865]
[1641165469902,1.43892996,47318.0,47317.0,0.36010865]
[1641165470506,1.52902733,47318.0,47316.0,0.36010865]
[1641165471511,1.61892996,47319.0,47317.0,0.36010865]
[1641165472218,0.365,47319.0,47315.0,0.63138118]
[1641165472418,0.35964738,47318.0,47315.0,0.0314]
[1641165474121,0.35964738,47317.0,47315.0,0.0314]
[1641165475221,0.185,47318.0,47315.0,0.0314]
[1641165475222,0.54464738,47318.0,47315.0,0.0314]
[1641165475426,0.35964738,47318.0,47315.0,0.0314]
[1641165476020,0.35964738,47317.0,47315.0,0.0314]
[1641165476820,0.54564738,47318.0,47315.0,0.0314]
[1641165477536,0.35964738,47318.0,47315.0,0.0314]
[1641165478129,0.54564738,47318.0,47315.0,0.0314]
[1641165479438,0.35964738,47318.0,47315.0,0.0314]
[1641165480235,0.54564738,47318.0,47315.0,0.0314]
[1641165481737,0.186,47318.0,47315.0,0.0314]
[1641165482142,0.35964738,47319.0,47315.0,0.0314]
[1641165482335,0.194,47318.0,47315.0,0.0314]
[1641165483441,0.35964738,47320.0,47315.0,0.0314]
[1641165484248,0.54964738,47320.0,47315.0,0.0314]
[1641165485540,0.35964738,47320.0,47315.0,0.0314]
[1641165486242,0.54764738,47320.0,47315.0,0.0314]
[1641165486852,0.35964738,47319.0,47315.0,0.0314]
[1641165488349,0.54864738,47319.0,47315.0,0.0314]
[1641165488657,0.54864738,47319.0,47316.0,0.84001998]
[1641165488658,1.31863777,47317.0,47316.0,0.84001998]
[1641165489952,1.40873849,47318.0,47316.0,0.84001998]
[1641165490352,1.59973849,47317.0,47316.0,0.84001998]
[1641165491162,0.28110072,47317.0,47316.0,0.84001998]
[1641165491355,0.28110072,47317.0,47315.0,0.87141998]
[1641165491356,0.46110072,47317.0,47315.0,0.87141998]
[1641165491555,0.27010072,47317.0,47309.0,1.31999857]
[1641165491756,0.02114228,47313.0,47309.0,1.31999857]
[1641165492055,0.20114423,47310.0,47306.0,1.43999844]
[1641165492255,0.4106099,47310.0,47306.0,1.43999844]
[1641165492455,0.18,47309.0,47306.0,1.43999844]
[1641165492956,0.18,47309.0,47303.0,0.14033567]
[1641165493157,0.06,47309.0,47304.0,1.32168496]
[1641165493357,0.18,47309.0,47304.0,1.32168496]
[1641165493857,0.2306099,47310.0,47303.0,0.14033567]
[1641165494059,0.09010072,47308.0,47303.0,0.14033567]
[1641165495162,0.28110072,47309.0,47303.0,0.14033567]
[1641165495557,0.09010072,47307.0,47303.0,0.14033567]
[1641165496263,0.28110072,47307.0,47303.0,0.14033567]
[1641165496459,0.191,47307.0,47303.0,0.14033567]
[1641165497162,0.09010072,47306.0,47303.0,0.14033567]
[1641165497761,0.09010072,47306.0,47303.0,0.32033567]
[1641165498261,0.28010072,47306.0,47303.0,0.32033567]
[1641165499161,0.28010072,47306.0,47304.0,1.111]
[1641165499371,0.09010072,47305.0,47304.0,1.111]
[1641165499561,1.43674581,47311.0,47304.0,1.120794]
[1641165499762,1.43674581,47311.0,47308.0,1.291]
[1641165500271,0.59856179,47310.0,47308.0,1.111]
[1641165500964,0.59856179,47310.0,47308.0,0.18]
[1641165501164,0.59856179,47310.0,47308.0,1.291]
[1641165501364,0.59856179,47311.0,47308.0,1.291]
[1641165502165,0.59856179,47311.0,47308.0,1.483]
[1641165502365,1.43674581,47321.0,47309.0,0.009794]
[1641165502366,1.45788455,47321.0,47309.0,0.009794]
[1641165502566,1.45788455,47321.0,47314.0,0.18]
[1641165502770,1.45788455,47321.0,47314.0,0.25747]
[1641165502965,1.45788455,47321.0,47315.0,0.009794]
[1641165503768,0.02113874,47321.0,47315.0,0.009794]
[1641165504171,0.02113874,47321.0,47316.0,0.14033567]
[1641165506172,0.02113874,47321.0,47316.0,0.32933567]